[Event "CZE-ch U14 Open 2023"]
[Site "Teplice"]
[Date "2023.03.16"]
[Round "7.2"]
[White "Jasso, Matej"]
[Black "Zelba, Lukas"]
[Result "1/2-1/2"]
[ECO "B13"]
[WhiteElo "1934"]
[BlackElo "1912"]
[Annotator "TA"]
[PlyCount "59"]
[EventDate "2023.03.09"]
[EventType "swiss"]
[EventCountry "CZE"]
[SourceTitle "playchess.com"]
[Source "ChessBase"]
[SourceQuality "1"]
[TimeControl "40/5400+30:1800+30"]

{[%evp 15,59,0,0,-11,0,-29,-7,-18,27,29,39,2,21,0,0,-58,0,0,0,0,0,0,0,0,0,0,0,0,0,0,0,0,0,0,0,0,0,0,0,0,0,0,0,0,0,0]} 1. e4 {[%emt 0:00:20]} c6 {[%emt 0:00:05]} 2. d4 {[%emt 0:00:13]} d5 {[%emt 0:00:03]} 3. exd5 {[%emt 0:01:21]} cxd5 4. Bd3 Nc6 {[%emt 0:01:58]} 5. c3 {[%emt 0:00:34]} Nf6 {[%emt 0:00:11]} 6. h3 {[%emt 0:00:05]} g6 {[%emt 0:00:48]} 7. Bf4 {[%emt 0:00:10]} Bf5 {[%emt 0:00:08]} 8. Bxf5 {[%emt 0:02:26] 8.Be2 gains popularity.} gxf5 {[%emt 0:00:09]} 9. Nf3 {[%emt 0:00:37] B13: Caro-Kann: Exchange Variation and Panov-Botvinnik Attack.} e6 {[%emt 0:00:22]} 10. Ne5 {[%emt 0:03:43]} Ne4 {[%emt 0:30:55]} 11. Nd2 {[%emt 0:02:49] [#]} Nxd2 $146 {[%emt 0:09:35]} ({Predecessor:} 11... Bd6 12. Nxc6 bxc6 13. Bxd6 Qxd6 14. Nxe4 fxe4 15. b4 a5 16. a3 e3 17. O-O Rg8 18. fxe3 {½-½ Cagara,P (2027)-Bugayev,V Titled Tuesday intern op 06th Apr blitz 2021 (7)}) 12. Qxd2 {[%emt 0:01:08]} Rg8 {[%emt 0:01:08]} 13. Qe2 {[%emt 0:07:42]} Bd6 {[%emt 0:07:36]} 14. g4 {[%emt 0:02:36]} Bxe5 {[%emt 0:05:24]} 15. dxe5 {[%emt 0:04:41]} (15. Bxe5 $11 Nxe5 16. Qxe5) 15... Qh4 {[%emt 0:01:40]} (15... Qa5 $1 $15) 16. Bg3 $11 {[%emt 0:04:43] The position is equal.} Qh6 {[%emt 0:00:42][%cal Og8g4] ...Rxg4! is the strong threat.} 17. gxf5 {[%emt 0:03:58]} exf5 {[%emt 0:00:07]} 18. Qf3 {[%emt 0:01:09][%csl LRd5,LRf5]} Qe6 {[%emt 0:00:54]} 19. O-O-O {[%emt 0:01:40]} O-O-O {[%emt 0:00:36]} 20. Kb1 {[%emt 0:02:44]} d4 {[%emt 0:07:57]} 21. cxd4 {[%emt 0:04:21]} Rxd4 {[%emt 0:02:24]} 22. Rxd4 {[%emt 0:04:42]} Nxd4 {[%emt 0:00:07]} 23. Rc1+ {[%emt 0:02:55]} Nc6 {[%emt 0:01:06]} 24. Qe3 {[%emt 0:02:01]} Rd8 {[%emt 0:09:48]} 25. Qxa7 {[%emt 0:10:00] Strongly threatening f3.} f4 $1 {[%emt 0:00:09][%mdl 64] [#] Discovered Attack} 26. Qa8+ {[%emt 0:10:35]} (26. Bxf4 $2 Qf5+ 27. Ka1 Qxf4 28. Qa8+ Kc7 29. Qa5+ Kb8 $19) 26... Kc7 {[%emt 0:00:05]} 27. Qa5+ {[%emt 0:00:04]} Kc8 {[%emt 0:03:04]} 28. Qa8+ {[%emt 0:01:14]} (28. Bxf4 $2 {too greedy.} Qf5+ 29. Ka1 Qxf4 30. Qa8+ Kc7 31. Qa5+ Kb8 $19) 28... Kc7 {[%emt 0:00:08]} 29. Qa5+ {[%emt 0:00:15]} Kc8 {[%emt 0:00:04]} 30. Qa8+ {[%emt 0:03:03] Weighted Error Value: White=0.09 (flawless) /Black=0.07 (flawless)} (30. Bxf4 $2 {loses.} Qf5+ 31. Ka1 Qxf4 $19) 1/2-1/2

[Event "CZE-ch U14 Open 2023"]
[Site "Teplice"]
[Date "2023.03.16"]
[Round "7.3"]
[White "Zemek, Antonin"]
[Black "Martirosyan, David"]
[Result "0-1"]
[ECO "A06"]
[WhiteElo "1739"]
[BlackElo "1975"]
[Annotator "TA"]
[PlyCount "78"]
[EventDate "2023.03.09"]
[EventType "swiss"]
[EventCountry "CZE"]
[SourceTitle "playchess.com"]
[Source "ChessBase"]
[SourceQuality "1"]
[TimeControl "40/5400+30:1800+30"]

{[%evp 20,77,-8,-24,-18,-37,-23,-66,-39,-61,-20,-39,-24,-106,-51,-151,-145,-133,-119,-138,-97,-285,-271,-268,-268,-395,-412,-403,-380,-381,-367,-366,-341,-321,-345,-351,-338,-965,-502,-5227,-5239,-29993,-29994,-29995,-29996,-29996,-29997,-29997,-29997,-29997,-29998,-29998,-29994,-29994,-29995,-29995,-29996,-29997,-29998,-29999]} 1. Nf3 d5 2. b3 Bf5 3. Bb2 e6 4. g3 h6 5. Bg2 Nf6 6. c4 c6 7. d3 Nbd7 8. Nbd2 Be7 9. Qc2 O-O 10. O-O Bh7 11. Rad1 a5 {[#] A12: English Opening: 1...c6 with b3 by White.} 12. h3 $146 {[#]} ({Predecessor:} 12. a3 b5 13. cxb5 cxb5 14. Qb1 Qb6 15. Rc1 Rfc8 16. Rxc8+ Rxc8 17. Rc1 Rc7 18. Rxc7 Qxc7 19. Qc1 Qxc1+ 20. Bxc1 {1-0 Froewis,G (2457)-Ragger,M (2679) AUT-ch Zwisch Internet blitz 2020 (9)}) 12... a4 $1 13. Nb1 (13. Rfe1 axb3) 13... axb3 {Black is slightly better.} 14. axb3 Qb8 15. Nc3 b5 {[%cal Bb7b5,Bb5c4,Bc4b3][%mdl 32]} 16. Nd4 {[#]} (16. cxb5 $11 cxb5 17. Ra1) 16... Qb6 (16... Rc8 $1 $17 17. cxb5 cxb5) 17. Ra1 Rxa1 $17 (17... Qxd4 18. Nxd5 Qc5 19. b4 $16) 18. Bxa1 {[%cal Oc4d5]} bxc4 (18... Qxd4 19. Nxd5 Qc5 20. b4 $16) 19. Na4 cxb3 20. Nxc6 {[#]} Ba3 $1 $19 (20... bxc2 21. Nxe7+ Kh8 22. Nxb6 $11) 21. Qc3 Qa6 ({Avoid the trap} 21... Qb5 $2 22. Nb2 $19) 22. Nb2 (22. Qxb3 $142 Qxc6 23. Qxa3) 22... Rc8 23. Rc1 {[%cal Oc6e7] aiming for Ne7+!} Kf8 {Dodges Ne7} 24. Qxb3 Nc5 ({Less strong is} 24... Rxc6 25. Rxc6 Qxc6 26. Qxa3+ Kg8 27. Nc4 $14) (24... Bxb2 $2 25. Qb4+ Kg8 26. Ne7+ (26. Qxb2 $2 {too greedy.} Rxc6 27. Rxc6 Qxc6 $19) 26... Kh8 27. Rxc8+ $18) 25. Qc3 Rxc6 26. d4 Nfe4 27. Bxe4 Bxe4 28. e3 $2 (28. dxc5 Rxc5 29. Qe1) 28... Kg8 {[%cal Oc5b3] Strongly threatening ...Nb3!} 29. h4 {[#]} (29. dxc5 $142 Rxc5 30. Qe1) 29... Qe2 $1 {[%cal Oa3b4] ( -> ...Bb4!)} 30. Qxa3 {[#] White is weak on the light squares} (30. dxc5 Qf3) 30... Qf3 $1 {[%csl Ge4][%cal Rf3g2][%mdl 64] Double Attack. Black mates.} 31. Kf1 (31. Qa8+ Kh7) 31... Qh1+ {[%mdl 64] Skewer} 32. Ke2 Bf3+ 33. Kd2 {[#]} Nb3+ $1 {[%mdl 512]} 34. Qxb3 Qxc1+ 35. Kd3 Be4+ 36. Ke2 Rc2+ {[%mdl 64] Skewer} 37. Qxc2 Qxc2+ 38. Ke1 Bf3 {[%csl Gf3][%cal Rc2e2]} 39. Nc4 Qd1# {Black took control after the opening. An entertaining game by Martirosyan.   Weighted Error Value: White=0.90/Black=0.25 (precise)} 0-1

[Event "CZE-ch U14 Open 2023"]
[Site "Teplice"]
[Date "2023.03.16"]
[Round "7.4"]
[White "Stary, Vojtech"]
[Black "Topencik, Bruno"]
[Result "1-0"]
[ECO "C10"]
[WhiteElo "1814"]
[BlackElo "1844"]
[Annotator "NA RC COMBH"]
[PlyCount "107"]
[EventDate "2023.03.09"]
[EventType "swiss"]
[EventCountry "CZE"]
[SourceTitle "playchess.com"]
[Source "ChessBase"]
[SourceQuality "1"]
[TimeControl "40/5400+30:1800+30"]

1. e4 {[%emt 0:00:02]} e6 {[%emt 0:00:06]} 2. d4 {[%emt 0:00:06]} d5 {[%emt 0:00:04]} 3. Nd2 {[%emt 0:00:06]} dxe4 {[%emt 0:00:08]} 4. Nxe4 {[%emt 0:00:09]} Nd7 {[%emt 0:00:14]} 5. Nf3 {[%emt 0:00:16]} Ngf6 {[%emt 0:00:21]} 6. Bd3 {[%emt 0:00:18]} Be7 {[%emt 0:01:10]} 7. Qe2 {[%emt 0:00:45]} O-O {[%emt 0:05:41]} 8. Bg5 {[%emt 0:01:02]} Re8 {[%emt 0:09:40]} 9. O-O-O {[%emt 0:01:13]} Nxe4 {[%emt 0:01:36]} 10. Bxe7 {[%emt 0:01:27]} Qxe7 {[%emt 0:03:39]} 11. Qxe4 {[%emt 0:01:51]} Nf8 {[%emt 0:02:14]} 12. Kb1 {[%emt 0:00:50]} Rb8 {[%emt 0:02:48]} 13. h4 {[%emt 0:00:41]} b5 {[%emt 0:00:49]} 14. Qe3 {[%emt 0:04:16]} Bb7 {[%emt 0:03:27]} 15. g4 {[%emt 0:05:00]} Bd5 {[%emt 0:03:29]} 16. Rh3 {[%emt 0:10:10]} Rb6 {[%emt 0:06:02]} 17. h5 {[%emt 0:10:30]} Reb8 {[%emt 0:06:14]} (17... Nd7 $14) 18. Nd2 {[%emt 0:06:54]} Ra6 {[%emt 0:03:24]} 19. Nb3 {[%emt 0:01:04]} Bxb3 {[%emt 0:02:14]} 20. axb3 {[%emt 0:01:38]} ({Don't play} 20. cxb3 $6 Rd6 $14) 20... Rd6 {[%emt 0:03:25]} 21. g5 {[%emt 0:03:24]} a5 {[%emt 0:08:57]} (21... Rd5 $16 {was necessary.}) 22. Rg1 {[%emt 0:05:22]} a4 {[%emt 0:06:35]} (22... g6 $16) 23. b4 {[%emt 0:08:53]} ({White should try} 23. g6 $18 fxg6 24. hxg6) 23... Ra6 {[%emt 0:08:07]} (23... g6 $16 24. f4 Rd7) 24. c3 {[%emt 0:02:03]} a3 {[%emt 0:02:11]} 25. b3 {[%emt 0:00:26]} a2+ {[%emt 0:01:17]} 26. Ka1 {[%emt 0:00:38]} Rd6 {[%emt 0:07:09]} 27. f4 {[%emt 0:01:12]} ({Weaker is} 27. Kxa2 e5 $16) 27... Qd7 {[%emt 0:01:46]} 28. Be4 {[%emt 0:12:23]} g6 {[%emt 0:01:06]} 29. hxg6 {[%emt 0:02:19]} ({Don't do} 29. Kxa2 Ra6+ 30. Kb2 c6 31. hxg6 fxg6 $18) 29... fxg6 {[%emt 0:00:53]} 30. Bf3 {[%emt 0:01:30]} Ra6 {[%emt 0:00:36]} 31. Rgh1 {[%emt 0:02:08]} Ra3 {[%emt 0:03:04]} 32. Bd1 {[%emt 0:01:52]} Qd5 {[%emt 0:00:50]} 33. Qe5 {[%emt 0:04:37]} Qg2 $2 {[%emt 0:03:18]} (33... Rb6 34. R1h2 (34. Qxc7 Rc6 $11) 34... Qc6) 34. R3h2 {[%emt 0:06:49]} Qc6 {[%emt 0:00:36]} 35. Qe3 {[%emt 0:02:52]} Qd5 {[%emt 0:00:39]} 36. Rf1 {[%emt 0:01:33]} Qf5 {[%emt 0:00:46]} 37. Bc2 {[%emt 0:00:46]} Qd5 {[%emt 0:00:09]} 38. Rff2 {[%emt 0:01:19]} Rba8 {[%emt 0:02:04]} 39. Qe5 {[%emt 0:01:01]} Qc6 {[%emt 0:00:50]} 40. Qe3 {[%emt 0:00:29]} Qd5 {[%emt 0:01:32]} 41. Qe4 {[%emt 0:05:49]} Qd6 {[%emt 0:03:19]} 42. Bd1 {[%emt 0:02:37]} Kf7 {[%emt 0:05:49]} 43. Rb2 {[%emt 0:02:54]} Qd7 {[%emt 0:03:19]} 44. Bf3 {[%emt 0:01:29]} R8a6 {[%emt 0:02:59]} 45. Rxa2 {[%emt 0:00:59]} Ke7 {[%emt 0:05:52]} (45... Qd6 $142 46. Rxa3 Rxa3+ 47. Kb2 Ra7) 46. Rxa3 {[%emt 0:05:11]} Rxa3+ {[%emt 0:00:11]} 47. Kb2 {[%emt 0:00:07]} Ra6 {[%emt 0:00:19]} 48. Rh1 {[%emt 0:01:44]} c6 {[%emt 0:00:57]} 49. Qe5 {[%emt 0:01:59]} Qa7 {[%emt 0:02:05]} (49... Kf7 $142 50. Ra1 Rxa1 51. Kxa1 Kg8) 50. Qg7+ {[%emt 0:01:07] Deflection} Ke8 {[%emt 0:00:25]} 51. Bxc6+ {[%emt 0:01:10]} Nd7 {[%emt 0:00:09]} 52. Bxd7+ {[%emt 0:01:06]} (52. Bxb5 $2 {is the wrong capture.} Ra2+ 53. Kb1 Ra1+ {[%mdl 64] Skewer} 54. Kc2 Rxh1 55. Bxd7+ Qxd7 56. Qg8+ Ke7 57. Qg7+ Kd8 58. Qf6+ Kc7 $19) 52... Kd8 {[%emt 0:00:47]} 53. Qf8+ {[%emt 0:00:46]} (53. Rxh7 {leads to mate.} Ra2+ 54. Kb1 Ra1+ 55. Kc2 Qa2+ 56. Kd3 Rd1+ 57. Ke3 Qd2+ 58. Kf3 Qxc3+ 59. Kg4 Rg1+ 60. Kh4 Qg3#) 53... Kxd7 {[%emt 0:00:34]} 54. Rxh7+ {[%emt 0:00:07]} 1-0

[Event "CZE-ch U14 Open 2023"]
[Site "Teplice"]
[Date "2023.03.16"]
[Round "7.5"]
[White "Zrubek, Dan"]
[Black "Babula, Matej"]
[Result "1/2-1/2"]
[ECO "C92"]
[WhiteElo "1752"]
[BlackElo "1796"]
[Annotator "NA RC COMBH"]
[PlyCount "80"]
[EventDate "2023.03.09"]
[EventType "swiss"]
[EventCountry "CZE"]
[SourceTitle "playchess.com"]
[Source "ChessBase"]
[SourceQuality "1"]
[TimeControl "40/5400+30:1800+30"]

1. e4 {[%emt 0:00:02]} e5 {[%emt 0:00:07]} 2. Nf3 {[%emt 0:00:06]} Nc6 {[%emt 0:00:04]} 3. Bb5 {[%emt 0:00:18]} a6 {[%emt 0:00:06]} 4. Ba4 {[%emt 0:00:04]} Nf6 {[%emt 0:00:15]} 5. O-O {[%emt 0:00:24]} Be7 {[%emt 0:00:17]} 6. Re1 {[%emt 0:01:05]} b5 {[%emt 0:00:11]} 7. Bb3 {[%emt 0:00:11]} d6 {[%emt 0:00:22]} 8. c3 {[%emt 0:03:49]} O-O {[%emt 0:00:38]} 9. h3 {[%emt 0:00:45]} Bb7 {[%emt 0:00:54]} 10. d4 {[%emt 0:01:11]} Re8 {[%emt 0:01:17]} 11. Nbd2 {[%emt 0:07:04]} Bf8 {[%emt 0:00:49]} 12. Bc2 {[%emt 0:02:17]} g6 {[%emt 0:02:03]} 13. Bb1 {[%emt 0:17:54]} Nb8 {[%emt 0:05:19]} 14. a4 {[%emt 0:03:21]} c5 {[%emt 0:09:40]} 15. Qb3 {[%emt 0:13:34]} Qd7 {[%emt 0:12:04]} 16. d5 {[%emt 0:05:09]} Bh6 {[%emt 0:23:40]} 17. Qc2 {[%emt 0:07:11]} Bg7 {[%emt 0:06:36]} 18. Nf1 {[%emt 0:03:06]} Qe7 {[%emt 0:02:14]} 19. Ng3 {[%emt 0:02:45]} c4 {[%emt 0:04:34]} 20. b3 {[%emt 0:05:37]} cxb3 {[%emt 0:02:53]} 21. Qxb3 {[%emt 0:01:06]} Nbd7 {[%emt 0:05:28]} 22. Be3 {[%emt 0:04:52]} Rec8 {[%emt 0:03:09]} 23. Bd3 {[%emt 0:02:24]} Nc5 {[%emt 0:02:54]} 24. Bxc5 Rxc5 {[%emt 0:00:43]} 25. axb5 {[%emt 0:03:16]} axb5 {[%emt 0:02:01]} 26. Rxa8+ {[%emt 0:00:59]} Bxa8 {[%emt 0:00:02]} 27. Bxb5 {[%emt 0:04:02]} Rc7 {[%emt 0:01:30]} 28. Ra1 {[%emt 0:02:15]} Ra7 {[%emt 0:00:13]} 29. Rxa7 {[%emt 0:02:54]} Qxa7 {[%emt 0:00:04]} 30. Qa4 {[%emt 0:00:33]} Qxa4 {[%emt 0:00:24]} 31. Bxa4 {[%emt 0:00:01]} Bb7 {[%emt 0:00:59]} 32. Bb5 {[%emt 0:00:26]} Bc8 {[%emt 0:01:21]} 33. Kf1 {[%emt 0:01:37]} Bd7 {[%emt 0:01:01]} 34. c4 {[%emt 0:01:42]} Kf8 {[%emt 0:01:30]} 35. Ke2 {[%emt 0:00:33]} Ke7 {[%emt 0:00:31]} 36. Kd3 {[%emt 0:00:56]} Ne8 {[%emt 0:03:24]} 37. Kc3 {[%emt 0:01:26]} Nc7 {[%emt 0:00:34]} 38. Kb4 {[%emt 0:00:44]} Bh6 {[%emt 0:01:13]} 39. Nf1 {[%emt 0:01:48]} f5 {[%emt 0:01:09]} 40. N1d2 {[%emt 0:00:47]} fxe4 {[%emt 0:06:11]} 1/2-1/2

[Event "CZE-ch U14 Open 2023"]
[Site "Teplice"]
[Date "2023.03.16"]
[Round "7.6"]
[White "Hrbek, Jachym"]
[Black "Roubal, Matyas"]
[Result "0-1"]
[ECO "B20"]
[WhiteElo "1824"]
[BlackElo "1948"]
[Annotator "TA"]
[PlyCount "76"]
[EventDate "2023.03.09"]
[EventType "swiss"]
[EventCountry "CZE"]
[SourceTitle "playchess.com"]
[Source "ChessBase"]
[SourceQuality "1"]
[TimeControl "40/5400+30:1800+30"]

{[%evp 9,75,-3,-2,-66,-62,-87,-85,-119,-139,-142,-111,-253,-197,-227,-182,-194,-121,-206,-114,-121,-96,-120,-119,-170,-106,-104,-102,-165,-137,-214,-224,-208,-211,-244,-231,-282,-278,-274,-291,-286,-264,-617,-641,-614,-599,-868,-860,-1175,-1186,-1065,-735,-1157,-896,-877,-868,-1333,-1314,-29986,-1172,-29990,-29991,-29991,-29992,-29997,-29998,-29998,-29999,-29999]} 1. e4 {[%emt 0:00:08]} c5 {[%emt 0:00:05]} 2. b4 {[%emt 0:00:22]} cxb4 {[%emt 0:00:13]} 3. a3 {[%emt 0:00:07]} Nf6 {[%emt 0:01:49]} 4. e5 {[%emt 0:01:38]} Nd5 {[%emt 0:00:20]} 5. axb4 {[%emt 0:01:46]} d6 {[%emt 0:05:43]} 6. Bb2 {[%emt 0:16:58] B20: Sicilian: Unusual White 2nd moves.} (6. Nf3 $11) 6... dxe5 $15 {[%emt 0:05:26]} 7. Bxe5 {[%emt 0:02:08]} Nc6 {[%emt 0:00:25] [#] Inhibits c3.} 8. Bg3 $146 {[%emt 0:02:34] Black is better.} ({Predecessor:} 8. Nf3 Ndxb4 9. Na3 Bf5 10. Bc4 e6 11. O-O Nxe5 12. Nxe5 Bd6 13. Bb5+ Ke7 14. Nf3 {0-1 Prabhugaonkar,A (1574)-Mokal,A (2070) IND-chB (Women) 41st 2014 (11)}) 8... Ndxb4 {[%emt 0:05:15]} (8... Ncxb4 9. Nf3 $15) 9. Na3 {[%emt 0:09:58]} Bf5 {[%emt 0:04:08] Black is more active.} 10. Qf3 {[%emt 0:14:29]} (10. Nf3 $17 {was necessary.}) 10... e6 {[%emt 0:16:43] Threatens to win with ...Nd4.} (10... Nxc2+ 11. Nxc2 Bxc2 12. Rc1 $17) 11. Bb5 {[%emt 0:05:22]} a6 {[%emt 0:18:46]} (11... Nxc2+ 12. Nxc2 Rc8 13. Ne3 $16) 12. Bxc6+ {[%emt 0:07:24]} bxc6 {[%emt 0:01:25]} ({Better is} 12... Nxc6 $19 13. Ne2 Rc8) 13. Ne2 {[%emt 0:01:31]} (13. Qc3 $17 {was called for.}) 13... Be7 {[%emt 0:08:10]} (13... Nxc2+ 14. Nxc2 Qd5 15. Qxd5 cxd5 16. Ncd4 $18) (13... Bxc2 $19 {White must now prevent ...Bd3.} 14. Nxc2 Nxc2+ 15. Kf1 Qd7) 14. O-O $17 {[%emt 0:01:04]} c5 {[%emt 0:04:20]} (14... Nxc2 $2 15. Nxc2 (15. Qxc6+ Kf8 $18) 15... O-O 16. Ncd4 $18 (16. Qxc6 Rc8 $17 {[%mdl 64] Skewer})) 15. d4 {[%emt 0:07:57]} O-O {[%emt 0:02:50]} ({Much worse is} 15... cxd4 $6 16. Nxd4 Qd5 17. Nxf5 exf5 18. Qe2 $11) (15... Nxc2 16. Nxc2 Bxc2 17. Rfc1 $16) 16. c3 {[%emt 0:00:43] [#]} (16. Rfd1 $17 {might work better.}) 16... Nd5 {[%emt 0:00:28]} (16... Qd5 $1 $19 17. cxb4 Qxf3 18. gxf3 cxb4) 17. Rfd1 {[%emt 0:03:07] Repels Bd3} Qc8 {[%emt 0:03:23]} 18. c4 {[%emt 0:02:52]} (18. Nc4 $17 {is a better defense.}) 18... Nf6 {[%emt 0:00:17]} 19. Qb3 {[%emt 0:04:26]} (19. d5 $17) 19... cxd4 $19 {[%emt 0:01:39]} 20. Nxd4 {[%emt 0:00:12]} Bg6 {[%emt 0:00:27]} 21. f3 {[%emt 0:02:00]} Bc5 {[%emt 0:00:34]} 22. Bf2 {[%emt 0:00:25]} e5 {[%emt 0:00:41]} 23. Ndc2 {[%emt 0:00:18]} Bxf2+ {[%emt 0:01:57]} ({Not} 23... Rb8 $2 24. Qc3 $19) 24. Kxf2 {[%emt 0:00:02]} e4 {[%emt 0:00:45] And now ...exf3 would win.} 25. Ne3 $2 {[%emt 0:01:22]} (25. Kg1) 25... exf3 {[%emt 0:00:04][%mdl 64] Deflection} 26. gxf3 {[%emt 0:00:17]} Qh3 {[%emt 0:00:30]} 27. Nf1 {[%emt 0:01:19]} Rab8 {[%emt 0:00:27][%cal Ba8b8,Bb8b3,Bb3f3][%mdl 32]} 28. Qe3 {[%emt 0:02:35]} Rfe8 {[%emt 0:01:19] White is weak on the light squares} 29. Qf4 {[%emt 0:01:35]} Rb3 {[%emt 0:02:20][%cal Ob3f3] ( -> ...Rxf3+!)} 30. Rd2 {[%emt 0:02:13]} Bh5 {[%emt 0:00:43][%cal Rb3f3]} 31. Kg1 {[%emt 0:06:28]} Rxf3 {[%emt 0:00:49]} 32. Qd6 {[%emt 0:00:19]} h6 {[%emt 0:02:00] Hoping for ...Ne4.} 33. Qxa6 {[%emt 0:01:27]} Ng4 {[%emt 0:04:10]} (33... Qg4+ $142 34. Ng3 Rxg3+ 35. hxg3 Qxg3+ 36. Rg2 Qe3+ 37. Rf2 Ne4 {[%mdl 64] Pin} 38. Qb6 Qxb6 {[%mdl 64] Pin} 39. Raa2 Nxf2 40. c5 Qxc5 41. Kg2 Re1 42. Kh2 Rh1+ 43. Kg3 Qg5+ 44. Kxf2 Qg1#) 34. Nb5 {[%emt 0:01:23]} Ne3 {[%emt 0:00:31] Black mates.} 35. Nxe3 {[%emt 0:00:38]} Rfxe3 {[%emt 0:00:01]} 36. Rdd1 {[%emt 0:00:47] [#]} Rg3+ $3 {[%emt 0:00:29][%mdl 512]} 37. hxg3 {[%emt 0:00:12]} Qxg3+ {[%emt 0:00:01]} 38. Kf1 {[%emt 0:00:09]} Be2# {[%emt 0:00:02] A superb game by Roubal.   Weighted Error Value: White=1.42/Black=0.53} 0-1

[Event "CZE-ch U14 Open 2023"]
[Site "Teplice"]
[Date "2023.03.16"]
[Round "7.7"]
[White "Hobza, Richard"]
[Black "Krautschneider, Daniel Jan"]
[Result "1/2-1/2"]
[ECO "D86"]
[WhiteElo "1702"]
[BlackElo "1679"]
[Annotator "NA RC COMBH"]
[PlyCount "61"]
[EventDate "2023.03.09"]
[EventType "swiss"]
[EventCountry "CZE"]
[SourceTitle "playchess.com"]
[Source "ChessBase"]
[SourceQuality "1"]
[TimeControl "40/5400+30:1800+30"]

1. d4 {[%emt 0:00:06]} Nf6 {[%emt 0:00:06]} 2. c4 {[%emt 0:00:06]} g6 {[%emt 0:00:05]} 3. Nc3 {[%emt 0:00:06]} d5 {[%emt 0:00:04]} 4. cxd5 {[%emt 0:00:14]} Nxd5 {[%emt 0:00:09]} 5. e4 {[%emt 0:00:14]} Nxc3 {[%emt 0:00:04]} 6. bxc3 {[%emt 0:00:04]} Bg7 {[%emt 0:00:05]} 7. Bc4 {[%emt 0:01:36]} c5 {[%emt 0:00:53]} 8. Ne2 {[%emt 0:00:36]} Nc6 {[%emt 0:00:17]} 9. Be3 {[%emt 0:02:06]} cxd4 {[%emt 0:00:44]} 10. cxd4 {[%emt 0:00:55]} Qa5+ {[%emt 0:00:26]} 11. Qd2 {[%emt 0:06:47]} Qxd2+ {[%emt 0:00:35]} 12. Kxd2 {[%emt 0:00:08]} O-O {[%emt 0:00:09]} 13. Rhd1 {[%emt 0:00:28]} Rd8 {[%emt 0:00:37]} 14. Ke1 {[%emt 0:00:35]} b6 {[%emt 0:19:30]} 15. Rac1 {[%emt 0:05:12]} Bb7 {[%emt 0:00:42]} 16. Bd5 {[%emt 0:04:57]} Rac8 {[%emt 0:01:01]} 17. Bxc6 {[%emt 0:07:45]} Rxc6 {[%emt 0:03:01]} 18. Rxc6 {[%emt 0:05:59]} Bxc6 {[%emt 0:00:08]} 19. d5 {[%emt 0:00:42]} Ba8 {[%emt 0:02:58]} 20. Rc1 {[%emt 0:03:54]} e6 {[%emt 0:06:23]} 21. dxe6 {[%emt 0:02:08]} Bxe4 {[%emt 0:01:23]} 22. exf7+ {[%emt 0:01:59]} Kxf7 {[%emt 0:00:43]} 23. Rc7+ {[%emt 0:00:48]} Kg8 {[%emt 0:00:24]} 24. f3 {[%emt 0:02:15]} Bd5 {[%emt 0:00:28]} 25. Rxa7 {[%emt 0:03:03]} b5 {[%emt 0:00:26]} 26. Kf2 {[%emt 0:09:19]} b4 {[%emt 0:03:14]} 27. Bc5 {[%emt 0:11:54]} b3 {[%emt 0:01:45]} 28. axb3 {[%emt 0:00:39]} Bxb3 {[%emt 0:00:06]} 29. Be3 {[%emt 0:00:49]} Re8 {[%emt 0:03:54]} 30. Rb7 {[%emt 0:03:36]} Bc4 {[%emt 0:00:37]} 31. Rb4 {[%emt 0:01:27]} 1/2-1/2

[Event "CZE-ch U14 Open 2023"]
[Site "Teplice"]
[Date "2023.03.16"]
[Round "7.8"]
[White "Popov, Roman"]
[Black "Dusanek, Michal"]
[Result "1/2-1/2"]
[ECO "D84"]
[WhiteElo "2353"]
[BlackElo "1624"]
[Annotator "TA"]
[PlyCount "61"]
[EventDate "2023.03.09"]
[EventType "swiss"]
[EventCountry "CZE"]
[SourceTitle "playchess.com"]
[Source "ChessBase"]
[SourceQuality "1"]
[TimeControl "40/5400+30:1800+30"]

{[%evp 21,61,0,11,0,41,41,56,27,59,55,86,40,40,40,43,35,39,-7,11,11,38,38,35,33,33,6,33,22,23,-29,-29,-36,-31,-69,-55,-51,-31,-31,-31,-31,-8,-8]} 1. d4 {[%emt 0:00:13]} Nf6 {[%emt 0:00:06]} 2. c4 {[%emt 0:00:06]} g6 {[%emt 0:00:04]} 3. Nc3 {[%emt 0:00:04]} d5 {[%emt 0:00:07]} 4. Bf4 {[%emt 0:00:27]} Bg7 {[%emt 0:00:49]} 5. e3 {[%emt 0:00:22]} O-O {[%emt 0:05:14]} 6. cxd5 {[%emt 0:00:35]} Nxd5 {[%emt 0:05:14]} 7. Nxd5 {[%emt 0:00:14]} Qxd5 {[%emt 0:00:05]} 8. Bxc7 {[%emt 0:00:40]} Na6 {[%emt 0:11:52]} 9. Bxa6 {[%emt 0:00:54]} Qxg2 {[%emt 0:03:45]} 10. Qf3 {[%emt 0:00:20]} Qxf3 {[%emt 0:00:16]} 11. Nxf3 {[%emt 0:00:03]} bxa6 {[%emt 0:00:16] Black is weak on the dark squares} 12. Ke2 {[%emt 0:08:07] D84: Grünfeld: 4 Bf4 Bg7 5 e3 0-0 6 cxd5.} Bb7 {[%emt 0:08:20][%cal Oa6a5]} 13. Rhc1 {[%emt 0:07:04]} Rac8 {[%emt 0:07:13] [#]} 14. Rc3 $146 {[%emt 0:06:28] White is slightly better.} ({Predecessor:} 14. Rc5 Rfe8 15. Rac1 Bf8 16. d5 Bg7 17. R1c2 f5 18. Nd2 a5 19. Rxa5 Be5 20. Bxe5 Rxc2 {1-0 Schick,A-Ahmadi,R East Lansing-ch MI op 1982}) 14... Rfe8 {[%emt 0:14:48]} 15. Rac1 {[%emt 0:01:35]} e6 {[%emt 0:02:39]} 16. b4 {[%emt 0:17:38]} (16. Bd6 $16) 16... Bf8 $14 {[%emt 0:07:09]} 17. a3 {[%emt 0:02:10]} f6 {[%emt 0:03:15]} 18. Nd2 {[%emt 0:04:09]} g5 {[%emt 0:09:52]} 19. Bg3 {[%emt 0:20:54]} (19. Kd3 $14) 19... Rxc3 {[%emt 0:03:18]} 20. Rxc3 {[%emt 0:00:10]} Rc8 {[%emt 0:01:07]} 21. Rxc8 {[%emt 0:02:11]} Bxc8 {[%emt 0:00:02][%mdl 4096] Endgame KBB-KBN} 22. Ne4 {[%emt 0:12:14]} Kf7 {[%emt 0:00:32][%cal Oa6a5]} 23. Bd6 {[%emt 0:03:02] Threatens to win with Bxf8.} Be7 {[%emt 0:01:25]} (23... Bb7 $5 {[%cal Rb7e4]} 24. Bxf8 Bxe4 $14) 24. Bb8 {[%emt 0:02:24]} Bb7 {[%emt 0:01:54]} 25. Ng3 {[%emt 0:01:50] [#]} ({White should try} 25. Nd6+ Bxd6 26. Bxd6) 25... a5 $1 $11 {[%emt 0:03:46]} 26. bxa5 {[%emt 0:01:28]} a6 {[%emt 0:00:36]} 27. a4 {[%emt 0:00:52]} Bc6 {[%emt 0:00:24][%cal Oe7d8]} 28. Bc7 {[%emt 0:02:05] Dodges Bd8} Bxa4 {[%emt 0:00:12]} 29. Ne4 {[%emt 0:01:37]} Bb5+ {[%emt 0:01:54]} 30. Kd1 {[%emt 0:02:51]} h5 {[%emt 0:00:45]} 31. Nd6+ {[%emt 0:01:18] Weighted Error Value: White=0.18 (very precise) /Black=0.15 (very precise)} 1/2-1/2